fUSD/lending_fUSD_20240327
["ID","MTS","AMOUNT","RATE_DAILY","PERIOD"]
[320786386,1711555885723,-684.77,0.00055342,120]
[320786387,1711555885733,-500.0,0.00055342,120]
[320786388,1711555885742,-500.0,0.00055342,120]
[320786389,1711555885751,-500.0,0.00055342,120]
[320786390,1711555885760,-500.0,0.00055342,120]
[320786391,1711555885769,-500.0,0.00055342,120]
[320786392,1711555885778,-862.93,0.00055342,120]
[320786393,1711555885788,-619.02,0.00055342,120]
[320786394,1711555885797,-500.0,0.00055342,120]
[320786395,1711555885806,-605.69,0.00055342,120]
[320786396,1711555885815,-500.0,0.00055342,120]
[320786397,1711555885824,-1457.69,0.00055342,120]
[320786398,1711555885834,-593.15,0.00055342,120]
[320786399,1711555885842,-500.0,0.00055342,120]
[320786400,1711555885851,-517.56,0.00055342,120]
[320786401,1711555885860,-327.03,0.00055342,120]
[320786402,1711555885869,-1182.15,0.00055342,120]
[320786403,1711555885878,-500.0,0.00055342,120]
[320786404,1711555885887,-778.34,0.00055342,120]
[320786405,1711555885896,-825.5,0.00055342,120]
[320786406,1711555885905,-2648.21,0.00055342,120]
[320786407,1711555885914,-500.0,0.00055342,120]
[320786408,1711555885923,-500.0,0.00055342,120]
[320786409,1711555885933,-1267.49,0.00055342,120]
[320786410,1711555885942,-500.0,0.00055342,120]
[320786411,1711555885951,-500.0,0.00055342,120]
[320786412,1711555885960,-519.92,0.00055342,120]
[320786413,1711555885969,-500.0,0.00055342,120]
[320786414,1711555885979,-839.35,0.00055342,120]
[320786415,1711555885990,-500.0,0.00055342,120]
[320786416,1711555885998,-500.0,0.00055342,120]
[320786417,1711555886008,-1135.8,0.00055342,120]
[320786418,1711555886017,-500.0,0.00055342,120]
[320786419,1711555886026,-541.72,0.00055342,120]
[320786420,1711555886035,-550.01,0.00055342,120]
[320786421,1711555886044,-184.36039065,0.00055342,120]
[320786422,1711555886053,-500.0,0.00055342,120]
[320786423,1711555886062,-151.0,0.00055342,120]
[320786424,1711555886071,-500.0,0.00055342,120]
[320786425,1711555886082,-240.20702639,0.00055342,120]
[320786426,1711555886091,-500.0,0.00055342,120]
[320786427,1711555886099,-1262.44,0.00055342,120]
[320786428,1711555886108,-500.0,0.00055342,120]
[320786429,1711555886122,-804.47,0.00055342,120]
[320786430,1711555886134,-500.0,0.00055342,120]
[320786431,1711555886143,-500.0,0.00055342,120]
[320786432,1711555886152,-1315.49,0.00055342,120]
[320786433,1711555886162,-264.14299979,0.00055342,120]
[320786434,1711555886172,-151.0,0.00055342,120]
[320786435,1711555886182,-804.61,0.00055342,120]
[320786436,1711555886192,-500.0,0.00055342,120]
[320786437,1711555886202,-680.65,0.00055342,120]
[320786438,1711555886212,-500.0,0.00055342,120]
[320786439,1711555886222,-151.0,0.00055342,120]
[320786440,1711555886231,-500.0,0.00055342,120]
[320786441,1711555886244,-500.0,0.00055342,120]
[320786442,1711555886253,-500.0,0.00055342,120]
[320786443,1711555886263,-151.0,0.00055342,120]
[320786444,1711555886272,-500.0,0.00055342,120]
[320786445,1711555886282,-903.57,0.00055342,120]
[320786446,1711555886291,-481.02161672,0.00055342,120]
[320786447,1711555886301,-1352.94,0.00055342,120]
[320786448,1711555886310,-500.0,0.00055342,120]
[320786449,1711555886320,-500.0,0.00055342,120]
[320786450,1711555886329,-562.31487158,0.00055342,120]
[320786451,1711555886338,-500.0,0.00055342,120]
[320786452,1711555886348,-500.0,0.00055342,120]
[320786453,1711555886357,-635.82,0.00055342,120]
[320786454,1711555886366,-789.97,0.00055342,120]
[320786455,1711555886375,-624.13,0.00055342,120]
[320786456,1711555886384,-262.611744,0.00055342,120]
[320786457,1711555886393,-610.47,0.00055342,120]
[320786458,1711555886403,-530.64,0.00055342,120]
[320786459,1711555886412,-262.61175,0.00055342,120]
[320786460,1711555886421,-500.0,0.00055342,120]
[320786461,1711555886431,-500.0,0.00055342,120]
[320786462,1711555886441,-500.0,0.00055342,120]
[320786463,1711555886451,-500.0,0.00055342,120]
[320786464,1711555886460,-500.0,0.00055342,120]
[320786465,1711555886469,-500.0,0.00055342,120]
[320786466,1711555886478,-500.0,0.00055342,120]
[320786467,1711555886493,-500.0,0.00055342,120]
[320786468,1711555886503,-500.0,0.00055342,120]
[320786469,1711555886512,-532.76,0.00055342,120]
[320786470,1711555886521,-500.0,0.00055342,120]
[320786471,1711555886530,-500.0,0.00055342,120]
[320786472,1711555886540,-500.0,0.00055342,120]
[320786473,1711555886549,-500.0,0.00055342,120]
[320786474,1711555886559,-500.0,0.00055342,120]
[320786475,1711555886568,-672.68,0.00055342,30]
[320786476,1711555886578,-500.0,0.00055342,120]
[320786477,1711555886587,-500.0,0.00055342,120]
[320786478,1711555886596,-500.0,0.00055342,120]
[320786479,1711555886606,-500.0,0.00055342,120]
[320786480,1711555886615,-500.0,0.00055342,120]
[320786481,1711555886624,-500.0,0.00055342,120]
[320786482,1711555886634,-500.0,0.00055342,120]
[320786483,1711555886643,-716.44,0.00055342,120]
[320786484,1711555886652,-527.07,0.00055342,120]
[320786485,1711555886661,-500.0,0.00055342,120]
[320786486,1711555886670,-524.76,0.00055342,120]
[320786487,1711555886679,-500.0,0.00055342,120]
[320786488,1711555886689,-500.0,0.00055342,120]
[320786489,1711555886698,-500.0,0.00055342,120]
[320786490,1711555886707,-500.0,0.00055342,120]
[320786491,1711555886716,-1195.92,0.00055342,120]
[320786492,1711555886725,-804.62,0.00055342,120]
[320786493,1711555886738,-500.0,0.00055342,120]
[320786494,1711555886747,-500.0,0.00055342,120]
[320786495,1711555886756,-632.15,0.00055342,120]
[320786496,1711555886765,-500.0,0.00055342,120]
[320786497,1711555886774,-562.96,0.00055342,120]
[320786498,1711555886783,-500.0,0.00055342,120]
[320786499,1711555886792,-1171.88,0.00055342,120]
[320786500,1711555886801,-634.49,0.00055342,120]
[320786501,1711555886810,-34816.52,0.00055342,120]
[320786502,1711555886820,-500.0,0.00055342,120]
[320786503,1711555886829,-654.53,0.00055342,120]
[320786504,1711555886839,-500.0,0.00055342,120]
[320786505,1711555886848,-500.0,0.00055342,120]
[320786506,1711555886858,-1203.84,0.00055342,120]
[320786507,1711555886867,-500.0,0.00055342,120]
[320786508,1711555886876,-500.0,0.00055342,120]
[320786509,1711555886885,-500.0,0.00055342,120]
[320786510,1711555886895,-500.0,0.00055342,120]
[320786511,1711555886905,-691.32,0.00055342,120]
[320786512,1711555886914,-829.77,0.00055342,120]
[320786513,1711555886924,-5690.61,0.00055342,120]
[320786514,1711555886933,-500.0,0.00055342,120]
[320786515,1711555886943,-612.26,0.00055342,120]
[320786516,1711555886952,-500.0,0.00055342,120]
[320786517,1711555886962,-500.0,0.00055342,120]
[320786518,1711555886971,-524.6,0.00055342,120]
[320786519,1711555886980,-500.0,0.00055342,120]
[320786520,1711555886993,-500.0,0.00055342,120]
[320786521,1711555887002,-1078.44,0.00055342,120]
[320786522,1711555887012,-500.0,0.00055342,120]
[320786523,1711555887023,-1263.56,0.00055342,120]
[320786524,1711555887032,-558.73,0.00055342,120]
[320786525,1711555887042,-500.0,0.00055342,120]
[320786526,1711555887052,-500.0,0.00055342,120]
[320786527,1711555887061,-500.0,0.00055342,120]
[320786528,1711555887072,-500.0,0.00055342,120]
[320786529,1711555887081,-514.15,0.00055342,120]
[320786530,1711555887091,-500.0,0.00055342,120]
[320786531,1711555887100,-500.0,0.00055342,120]
[320786532,1711555887110,-518.04,0.00055342,120]
[320786533,1711555887122,-500.0,0.00055342,120]
[320786534,1711555887132,-1339.03,0.00055342,120]
[320786535,1711555887143,-500.0,0.00055342,120]
[320786536,1711555887152,-2819.83,0.00055342,120]
[320786537,1711555887162,-377.35,0.00055342,120]
[320786538,1711555887172,-4237.53,0.00055342,120]
[320786539,1711555887182,-500.0,0.00055342,120]
[320786540,1711555887191,-1021.97,0.00055342,120]
[320786541,1711555887201,-1392.63,0.00055342,120]
[320786542,1711555887211,-500.0,0.00055342,120]
[320786543,1711555887220,-500.0,0.00055342,120]
[320786544,1711555887229,-23692.63,0.00055342,120]
[320786545,1711555887241,-625.49,0.00055342,120]
[320786546,1711555887251,-753.14,0.00055342,120]
[320786547,1711555887261,-500.0,0.00055342,120]
[320786548,1711555887271,-500.0,0.00055342,120]
[320786549,1711555887281,-691.69,0.00055342,120]
[320786550,1711555887291,-500.0,0.00055342,120]
[320786551,1711555887301,-500.0,0.00055342,120]
[320786552,1711555887311,-6105.13,0.00055342,120]
[320786553,1711555887320,-500.0,0.00055342,120]
[320786554,1711555887330,-583.83,0.00055342,120]
[320786555,1711555887340,-659.64,0.00055342,120]
[320786556,1711555887349,-500.0,0.00055342,7]
[320786557,1711555887359,-564.94,0.00055342,120]
[320786558,1711555887369,-910.28,0.00055342,120]
[320786559,1711555887378,-2199.55,0.00055342,120]
[320786560,1711555887387,-500.0,0.00055342,120]
[320786561,1711555887397,-520.74,0.00055342,120]
[320786562,1711555887408,-673.28,0.00055342,120]
[320786563,1711555887417,-347.08192592,0.00055342,120]
[320786564,1711555887427,-5595.4,0.00055342,120]
[320786565,1711555887437,-744.21,0.00055342,120]
[320786566,1711555887447,-921.69,0.00055342,120]
[320786567,1711555887456,-569.2,0.00055342,120]
[320786568,1711555887466,-500.0,0.00055342,120]
[320786569,1711555887475,-500.0,0.00055342,120]
[320786570,1711555887487,-500.0,0.00055342,120]
[320786571,1711555887496,-243.43,0.00055342,120]
[320786572,1711555887505,-500.0,0.00055342,120]
[320786573,1711555887516,-500.0,0.00055342,120]
[320786574,1711555887525,-551.59,0.00055342,120]
[320786575,1711555887535,-523.14,0.00055342,120]
[320786576,1711555887545,-3703.43,0.00055342,120]
[320786577,1711555887554,-1102.59,0.00055342,120]
[320786578,1711555887564,-500.0,0.00055342,120]
[320786579,1711555887574,-689.32,0.00055342,120]
[320786580,1711555887585,-500.0,0.00055342,120]
[320786581,1711555887596,-701.23,0.00055342,120]
[320786582,1711555887606,-516.42,0.00055342,120]
[320786583,1711555887616,-2464.06,0.00055342,120]
[320786584,1711555887626,-15875.85,0.00055342,120]
[320786585,1711555887636,-500.0,0.00055342,120]
[320786586,1711555887646,-589.17,0.00055342,120]
[320786587,1711555887656,-500.0,0.00055342,120]
[320786588,1711555887666,-500.0,0.00055342,120]
[320786589,1711555887676,-1937.89,0.00055342,120]
[320786590,1711555887685,-500.0,0.00055342,120]
[320786591,1711555887694,-500.0,0.00055342,120]
[320786592,1711555887704,-598.88,0.00055342,120]
[320786593,1711555887713,-1230.88,0.00055342,120]
[320786594,1711555887723,-2440.25,0.00055342,120]
[320786595,1711555887734,-1859.92,0.00055342,120]
[320786596,1711555887744,-930.82,0.00055342,120]
[320786597,1711555887753,-500.0,0.00055342,120]
[320786598,1711555887763,-912.34,0.00055342,120]
[320786599,1711555887773,-1000.9,0.00055342,120]
[320786600,1711555887782,-769.7,0.00055342,120]
[320786601,1711555887792,-500.0,0.00055342,120]
[320786602,1711555887802,-2049.42,0.00055342,120]
[320786603,1711555887812,-500.0,0.00055342,120]
[320786604,1711555887821,-6420.03,0.00055342,120]
[320786605,1711555887830,-54111.41,0.00055342,120]
[320786606,1711555887841,-587.29,0.00055342,120]
[320786607,1711555887850,-500.0,0.00055342,120]
[320786608,1711555887859,-500.0,0.00055342,120]
[320786609,1711555887869,-500.0,0.00055342,120]
[320786610,1711555887878,-4144.22,0.00055342,120]
[320786611,1711555887888,-665.42,0.00055342,120]
[320786612,1711555887898,-983.43,0.00055342,120]
[320786613,1711555887907,-2706.27,0.00055342,120]
[320786614,1711555887917,-1571.18,0.00055342,120]
[320786615,1711555887926,-566.18,0.00055342,120]
[320786616,1711555887936,-2551.37,0.00055342,120]
[320786617,1711555887946,-500.0,0.00055342,120]
[320786618,1711555887955,-4754.25,0.00055342,120]
[320786619,1711555887965,-4872.03,0.00055342,120]
[320786620,1711555887975,-1087.19,0.00055342,120]
[320786621,1711555887985,-699.37,0.00055342,120]
[320786622,1711555887994,-2124.69,0.00055342,120]
[320786623,1711555888004,-500.0,0.00055342,120]
[320786624,1711555888013,-500.0,0.00055342,120]
[320786625,1711555888023,-500.0,0.00055342,120]
[320786626,1711555888032,-966.35,0.00055342,120]
[320786627,1711555888042,-5561.81,0.00055342,120]
[320786628,1711555888052,-1284.1,0.00055342,120]
[320786629,1711555888062,-711.34,0.00055342,120]
[320786630,1711555888071,-2741.47,0.00055342,120]
[320786631,1711555888081,-1876.3,0.00055342,120]
[320786632,1711555888090,-500.0,0.00055342,120]
[320786633,1711555888100,-2598.47,0.00055342,120]
[320786634,1711555888110,-2280.26,0.00055342,120]
[320786635,1711555888120,-1429.9,0.00055342,120]
[320786636,1711555888131,-1391.61,0.00055342,120]
[320786637,1711555888142,-500.0,0.00055342,120]
[320786638,1711555888155,-704.02,0.00055342,120]
[320786639,1711555888216,-1140.85,0.00055342,120]
[320786640,1711555888227,-5917.63,0.00055342,120]
[320786641,1711555888242,-500.0,0.00055342,120]
[320786642,1711555888251,-996.67,0.00055342,120]
[320786643,1711555888262,-10580.92,0.00055342,120]
[320786644,1711555888272,-2509.99,0.00055342,120]
[320786645,1711555888282,-500.0,0.00055342,120]
[320786646,1711555888293,-552.78,0.00055342,120]
[320786647,1711555888303,-1442.1,0.00055342,120]
[320786648,1711555888313,-3750.14,0.00055342,120]
[320786649,1711555888324,-1480.07,0.00055342,120]
[320786650,1711555888334,-500.0,0.00055342,120]
[320786651,1711555888344,-4030.03,0.00055342,120]
[320786652,1711555888354,-1488.27,0.00055342,120]
[320786653,1711555888364,-2545.5,0.00055342,120]
[320786654,1711555888373,-500.0,0.00055342,120]
[320786655,1711555888384,-2130.92,0.00055342,120]
[320786656,1711555888394,-1661.29,0.00055342,120]
[320786657,1711555888403,-3408.52,0.00055342,120]
[320786658,1711555888413,-500.0,0.00055342,120]
[320786659,1711555888422,-1608.7,0.00055342,120]
[320786660,1711555888432,-500.0,0.00055342,120]
[320786661,1711555888442,-1509.47,0.00055342,120]
[320786662,1711555888452,-3655.31,0.00055342,120]
[320786663,1711555888461,-4663.33,0.00055342,120]
[320786664,1711555888472,-975.3,0.00055342,120]
[320786665,1711555888482,-608.93,0.00055342,120]
[320786666,1711555888495,-1974.63,0.00055342,120]
[320786667,1711555888505,-951.26,0.00055342,120]
[320786668,1711555888516,-10765.87,0.00055342,120]
[320786669,1711555888526,-3909.78,0.00055342,120]
[320786670,1711555888536,-2649.69,0.00055342,120]
[320786671,1711555888546,-1021.43,0.00055342,120]
[320786672,1711555888555,-1204.25,0.00055342,120]
[320786673,1711555888565,-2113.78,0.00055342,120]
[320786674,1711555888576,-3079.13,0.00055342,120]
[320786675,1711555888587,-509.78,0.00055342,120]
[320786676,1711555888597,-500.0,0.00055342,120]
[320786677,1711555888607,-15879.71,0.00055342,120]
[320786678,1711555888617,-770.92,0.00055342,120]
[320786679,1711555888627,-5347.94,0.00055342,120]
[320786680,1711555888637,-2345.3,0.00055342,120]
[320786681,1711555888647,-500.0,0.00055342,120]
[320786682,1711555888657,-8071.86,0.00055342,120]
[320786683,1711555888666,-2855.54,0.00055342,120]
[320786684,1711555888677,-500.0,0.00055342,120]
[320786685,1711555888688,-1888.04,0.00055342,120]
[320786686,1711555888699,-500.0,0.00055342,120]
[320786687,1711555888709,-2108.72,0.00055342,120]
[320786688,1711555888718,-1550.55,0.00055342,120]
[320786689,1711555888733,-989.07,0.00055342,120]
[320786690,1711555888744,-13927.0,0.00055342,120]
[320786691,1711555888755,-221.27121067,0.00055342,120]
[320786692,1711555888764,-1603.31,0.00055342,120]
[320786693,1711555888774,-1762.3,0.00055342,120]
[320786694,1711555888784,-10720.57,0.00055342,120]
[320786695,1711555888793,-500.0,0.00055342,120]
[320786696,1711555888804,-500.0,0.00055342,120]
[320786697,1711555888814,-3734.86,0.00055342,120]
[320786698,1711555888824,-500.0,0.00055342,120]
[320786699,1711555888835,-12451.76,0.00055342,120]
[320786700,1711555888845,-1116.58,0.00055342,120]
[320786701,1711555888855,-3252.39,0.00055342,120]
[320786702,1711555888864,-4938.81,0.00055342,120]
[320786703,1711555888874,-2206.47,0.00055342,120]
[320786704,1711555888884,-500.0,0.00055342,120]
[320786705,1711555888894,-2668.03,0.00055342,120]
[320786706,1711555888904,-2001.18,0.00055342,120]
[320786707,1711555888914,-9849.31,0.00055342,120]
[320786708,1711555888924,-4956.45,0.00055342,120]
[320786709,1711555888934,-2986.85,0.00055342,120]
[320786710,1711555888944,-3065.59,0.00055342,120]
[320786711,1711555888954,-500.0,0.00055342,120]
[320786712,1711555888963,-2197.12,0.00055342,120]
[320786713,1711555888974,-531.56,0.00055342,120]
[320786714,1711555888983,-500.0,0.00055342,120]
[320786715,1711555888994,-963.05,0.00055342,120]
[320786716,1711555889005,-1226.8115226,0.00055342,120]
[320786717,1711555889015,-500.0,0.00055342,120]
[320786718,1711555889025,-2275.29,0.00055342,120]
[320786719,1711555889035,-610.07,0.00055342,120]
[320786720,1711555889044,-500.0,0.00055342,120]
[320786721,1711555889054,-6100.22,0.00055342,120]
[320786722,1711555889064,-1765.05,0.00055342,120]
[320786723,1711555889074,-3526.44,0.00055342,120]
[320786724,1711555889085,-876.17,0.00055342,120]
[320786725,1711555889095,-500.0,0.00055342,120]
[320786726,1711555889106,-500.0,0.00055342,120]
[320786727,1711555889118,-320.5174366,0.00055342,120]
[320786728,1711555889128,-538.57,0.00055342,120]
[320786729,1711555889139,-3223.1,0.00055342,120]
[320786730,1711555889150,-37831.55,0.00055342,120]
[320786731,1711555889160,-1923.39,0.00055342,120]
[320786732,1711555889170,-3984.46,0.00055342,120]
[320786733,1711555889180,-2049.23,0.00055342,120]
[320786734,1711555889190,-500.0,0.00055342,120]
[320786735,1711555889201,-908.28,0.00055342,120]
[320786736,1711555889211,-1881.27,0.00055342,120]
[320786737,1711555889221,-1003.99,0.00055342,120]
[320786738,1711555889407,-560.17,0.00055342,120]
[320786739,1711555889418,-1126.67,0.00055342,120]
[320786740,1711555889428,-982.68,0.00055342,120]
[320786741,1711555889438,-3977.93,0.00055342,120]
[320786742,1711555889448,-4201.13,0.00055342,120]
[320786743,1711555889458,-1477.02,0.00055342,120]
[320786744,1711555889468,-759.9,0.00055342,120]
[320786745,1711555889478,-500.0,0.00055342,120]
[320786746,1711555889491,-2387.09,0.00055342,120]
[320786747,1711555889500,-1752.93,0.00055342,120]
[320786748,1711555889509,-2264.79,0.00055342,120]
[320786749,1711555889519,-500.0,0.00055342,120]
[320786750,1711555889528,-1691.32,0.00055342,120]
[320786751,1711555889538,-980.57,0.00055342,120]
[320786752,1711555889547,-615.02,0.00055342,120]
[320786753,1711555889557,-4059.54,0.00055342,120]
[320786754,1711555889567,-667.42,0.00055342,120]
[320786755,1711555889577,-1684.5,0.00055342,120]
[320786756,1711555889587,-783.93,0.00055342,120]
[320786757,1711555889597,-1889.11,0.00055342,120]
[320786758,1711555889607,-1200.63,0.00055342,120]
[320786759,1711555889617,-1686.38,0.00055342,120]
[320786760,1711555889627,-500.0,0.00055342,120]
[320786761,1711555889636,-2698.4,0.00055342,120]
[320786762,1711555889646,-776.98,0.00055342,120]
[320786763,1711555889655,-4442.43,0.00055342,120]
[320786764,1711555889665,-11859.21,0.00055342,21]
[320786765,1711555889675,-3457.11,0.00055342,120]
[320786766,1711555889684,-500.0,0.00055342,120]
[320786767,1711555889693,-500.0,0.00055342,120]
[320786768,1711555889703,-476.7004538,0.00055342,120]
[320786769,1711555889712,-1000.0,0.00055399,30]
[320786770,1711555889721,-154.58936673,0.00055413,120]
[320786771,1711555889731,-156.920962,0.00055425,120]
[320786772,1711555889746,-594.576621,0.0005543,30]
[320786773,1711555889756,-1243.808336,0.0005543,30]
[320786774,1711555889766,-2000.0,0.00055437,120]
[320786775,1711555889775,-302.065412,0.00055448,109]
[320786776,1711555889784,-2500.0,0.00055479,120]
[320786777,1711555889793,-2500.0,0.00055479,120]
[320786778,1711555889803,-599.15,0.00055479,120]
[320786779,1711555889812,-453.098124,0.00055498,108]
[320786780,1711555889822,-31592.48966197,0.000555,120]
[320786781,1711555889831,-157.13009561,0.00055543,120]
[320786782,1711555889841,-155.90684899,0.00055547,120]
[320786783,1711555889851,-200.0,0.00055555,2]
[320786784,1711555889860,-154.58936673,0.00055577,120]
[320786785,1711555889869,-695.8628507,0.00055578,2]
[320786786,1711555889879,-8289.9901083,0.00055578,2]
[320786787,1711555889888,-226483.6394971,0.00055578,2]
[320786788,1711555889897,-1296.5380101,0.00055578,2]
[320786789,1711555889907,-2790.4609436,0.00055578,2]
[320786790,1711555889917,-6781.2393807,0.00055578,2]
[320786791,1711555889926,-152.0,0.00055581,3]
[320786792,1711555889936,-157.13009561,0.00055586,120]
[320786793,1711555889945,-584.0,0.00055589,120]
[320786794,1711555889954,-9506.0773753,0.00055596,45]
[320786795,1711555889963,-5000.0,0.00055596,51]
[320786796,1711555889973,-5000.0,0.00055596,47]
[320786797,1711555889982,-5000.0,0.00055596,46]
[320786798,1711555889995,-5000.0,0.00055596,48]
[320786799,1711555890004,-1000.0,0.00055615,120]
[320786800,1711555890014,-500.0,0.00055615,90]
[320786801,1711555890023,-1000.0,0.00055615,90]
[320786802,1711555890032,-1000.0,0.00055616,120]
[320786803,1711555890042,-500.0,0.00055616,120]
[320786804,1711555890051,-500.0,0.00055616,120]
[320786805,1711555890061,-547.1,0.00055616,120]
[320786806,1711555890070,-500.0,0.00055616,120]
[320786807,1711555890080,-500.0,0.00055616,120]
[320786808,1711555890090,-500.0,0.00055616,120]
[320786809,1711555890101,-500.0,0.00055616,120]
[320786810,1711555890110,-500.0,0.00055616,120]
[320786811,1711555890122,-500.0,0.00055616,120]
[320786812,1711555890131,-500.0,0.00055616,120]
[320786813,1711555890143,-500.0,0.00055616,120]
[320786814,1711555890152,-500.0,0.00055616,120]
[320786815,1711555890163,-470.18178647,0.00055616,120]
[320786816,1711555890172,-500.0,0.00055616,120]
[320786817,1711555890182,-500.0,0.00055616,120]
[320786818,1711555890192,-500.0,0.00055616,120]
[320786819,1711555890202,-500.0,0.00055616,120]
[320786820,1711555890212,-494.85,0.00055616,120]
[320786821,1711555890222,-500.0,0.00055616,120]
[320786822,1711555890232,-729.64,0.00055616,120]
[320786823,1711555890247,-500.0,0.00055616,120]
[320786824,1711555890256,-500.0,0.00055616,120]
[320786825,1711555890266,-500.0,0.00055616,120]
[320786826,1711555890276,-1225.27,0.00055616,120]
[320786827,1711555890286,-1275.0,0.00055616,120]
[320786828,1711555890295,-1134.63,0.00055616,120]
[320786829,1711555890305,-500.0,0.00055616,120]
[320786830,1711555890314,-500.0,0.00055616,120]
[320786831,1711555890323,-500.0,0.00055616,120]
[320786832,1711555890332,-500.0,0.00055616,120]
[320786833,1711555890341,-500.0,0.00055616,120]
[320786834,1711555890351,-500.0,0.00055616,120]
[320786835,1711555890360,-1457.47,0.00055616,120]
[320786836,1711555890369,-500.0,0.00055616,120]
[320786837,1711555890378,-500.0,0.00055616,120]
[320786838,1711555890387,-500.0,0.00055616,120]
[320786839,1711555890396,-670.64,0.00055616,120]
[320786840,1711555890406,-726.47,0.00055616,120]
[320786841,1711555890415,-500.0,0.00055616,120]
[320786842,1711555890424,-500.0,0.00055616,120]
[320786843,1711555890433,-500.0,0.00055616,120]
[320786844,1711555890442,-500.0,0.00055616,120]
[320786845,1711555890452,-500.0,0.00055616,120]
[320786846,1711555890461,-515.51,0.00055616,120]
[320786847,1711555890471,-500.0,0.00055616,120]
[320786848,1711555890481,-813.63,0.00055616,120]
[320786849,1711555890494,-2237.32,0.00055616,120]
[320786850,1711555890504,-500.0,0.00055616,120]
[320786851,1711555890513,-1535.75,0.00055616,120]
[320786852,1711555890522,-1282.94,0.00055616,120]
[320786853,1711555890532,-500.0,0.00055616,120]
[320786854,1711555890542,-500.0,0.00055616,120]
[320786855,1711555890552,-1256.72,0.00055616,120]
[320786856,1711555890561,-525.11,0.00055616,120]
[320786857,1711555890570,-680.33,0.00055616,120]
[320786858,1711555890579,-500.0,0.00055616,120]
[320786859,1711555890589,-500.0,0.00055616,120]
[320786860,1711555890599,-656.15,0.00055616,120]
[320786861,1711555890608,-500.0,0.00055616,120]
[320786862,1711555890617,-1752.52,0.00055616,120]
[320786863,1711555890627,-500.0,0.00055616,120]
[320786864,1711555890636,-526.42,0.00055616,120]
[320786865,1711555890646,-500.0,0.00055616,120]
[320786866,1711555890655,-742.87,0.00055616,120]
[320786867,1711555890664,-500.0,0.00055616,120]
[320786868,1711555890674,-828.26,0.00055616,120]
[320786869,1711555890683,-500.0,0.00055616,120]
[320786870,1711555890692,-500.0,0.00055616,120]
[320786871,1711555890701,-500.0,0.00055616,120]
[320786872,1711555890711,-500.0,0.00055616,120]
[320786873,1711555890720,-500.0,0.00055616,120]
[320786874,1711555890729,-500.0,0.00055616,120]
[320786875,1711555890741,-672.95,0.00055616,120]
[320786876,1711555890751,-500.0,0.00055616,120]
[320786877,1711555890761,-500.0,0.00055616,120]
[320786878,1711555890770,-500.0,0.00055616,120]
[320786879,1711555890780,-500.0,0.00055616,120]
[320786880,1711555890788,-894.45,0.00055616,120]
[320786881,1711555890797,-500.0,0.00055616,120]
[320786882,1711555890807,-500.0,0.00055616,120]
[320786883,1711555890816,-500.0,0.00055616,120]
[320786884,1711555890825,-500.0,0.00055616,120]
[320786885,1711555890835,-1596.51,0.00055616,120]